{"text_format":"2","workbook":"xlsx","n_sheets":3,"sheets":["Hoja1","Hoja2","Hoja3"],"not_rendered":{"charts":0,"images":2,"macros":0,"external_links":0,"defined_names":1,"comments":0,"pivot_tables":0},"unopened":[],"bounds":{"document_bytes":16777216,"sheet_cells":100000,"run_cost":"one","rows_first":2000,"rows_last":500,"rows_between":2000,"halvings":0,"cell_chars":16384,"cell_head_chars":4096},"cells_cut":0,"cells_raw":0,"read":"whole","date_system":"1900"}

{"sheet":"Hoja1","index":0,"n_rows":110,"n_cols":10,"rows_kept":110,"cut":false,"hidden":false,"merged":[[97,1,97,9],[62,8,62,9],[63,1,63,2],[86,1,87,9],[72,1,72,9],[71,1,71,2],[69,1,69,2],[70,1,70,2],[70,8,70,9],[71,8,71,9],[43,1,45,1],[43,2,45,2],[43,3,45,5],[43,6,45,7],[43,8,45,8],[48,6,48,7],[49,6,49,7],[60,1,60,9],[56,6,56,7],[56,8,56,9],[55,6,55,7],[55,8,55,9],[49,3,49,5],[50,1,50,9],[47,6,47,7],[109,1,111,9],[74,1,75,9],[70,3,70,6],[71,3,71,6],[63,3,63,6],[63,8,63,9],[65,1,65,2],[65,3,65,6],[65,8,65,9],[69,8,69,9],[69,3,69,6],[66,8,66,9],[66,3,66,6],[67,3,67,6],[68,3,68,6],[61,8,61,9],[67,8,67,9],[68,8,68,9],[61,1,61,2],[62,1,62,2],[62,3,62,6],[61,3,61,6],[66,1,66,2],[12,1,12,2],[13,1,13,2],[14,1,14,2],[15,1,15,2],[18,3,18,9],[29,8,31,8],[29,4,31,5],[29,9,31,9],[27,1,27,8],[17,1,17,2],[29,1,31,1],[29,2,31,2],[21,3,21,9],[21,1,21,2],[10,3,10,9],[24,1,25,9],[20,1,20,2],[22,1,22,2],[17,3,17,9],[22,3,22,9],[19,3,19,9],[20,3,20,9],[18,1,18,2],[19,1,19,2],[16,1,16,2],[12,3,12,9],[13,3,13,9],[14,3,14,9],[15,3,15,9],[16,3,16,9],[32,4,32,5],[29,6,30,7],[47,3,47,5],[48,3,48,5],[46,3,46,5],[46,6,46,7],[33,4,33,5],[38,4,38,5],[37,4,37,5],[29,3,31,3],[34,4,34,5],[35,4,35,5],[36,4,36,5],[41,1,41,9],[43,9,45,9],[39,1,39,9]]}
[]
[]
[]
[{"$nulls":5},"FORMATO N° 04"]
[{"$nulls":5},"FICHA DE RESUMEN "]
[]
[null,null,"PROCESO CAS N° "]
[]
[null,"1.       DATOS PERSONALES"]
[]
[null,"PUESTO AL QUE POSTULA: "]
[]
[null,"DNI N°"]
[null,"Apellidos y Nombres "]
[null,"Fecha de Nacimiento  Dia/Mes/Año"]
[null,"Dirección"]
[null,"Distrito "]
[null,"Estado Civil"]
[null,"Teléfono celular"]
[null,"Teléfono fijo"]
[null,"Correo electrónico"]
[null,"N°de licencia de conducir (indicar categoría)"]
[null,"Medio por el cual se enteró del proceso CAS."]
[]
[null,"Los datos consignados en esta ficha deberán ser acreditados previa a la firma del Contrato. Cuando el postulante no reuna los requisitos necesarios será declarado como NO APTO "]
[]
[]
[null,"2.  FORMACIÓN ACADÉMICA"]
[]
[null,null,"NOMBRE DE LA INSTITUCION","NIVEL ALCANZADO","PROFESIÓN O ESPECIALIDAD",null,"MES/AÑO",null,"Años de estudios","Que documento tiene que sustente lo señalado"]
[]
[{"$nulls":6},"DESDE","HASTA"]
[null,"ESTUDIOS SECUNDARIOS",{"$nulls":4},"/","/"]
[null,"FORMACION TECNICA",{"$nulls":4},"/","/"]
[null,"FORMACION UNIVERSITARIA",{"$nulls":4},"/","/"]
[null,"MAESTRÍA",{"$nulls":4},"/","/"]
[null,"DOCTORADO",{"$nulls":4},"/","/"]
[null,"OTROS ESTUDIOS (Otras profesiones,  Especialidades y/o Maestrias)",{"$nulls":4},"/","/"]
[null,"OTROS ESTUDIOS (Otras profesiones,  Especialidades y/o Maestrias)",{"$nulls":4},"/","/"]
[null,"(*)    DEBERA SER LLENADO OBLIGATORIAMENTE EN LA PRESENTACION DEL CURRICULUM DOCUMENTADO, PREVIA A LA FIRMA DEL CONTRATO"]
[]
[null,"3.  ESTUDIOS RELACIONADOS A ESPECIALIZACIONES O DIPLOMADOS   ( RELACIONADO A LOS TÉRMINOS DE REFERENCIA)."]
[]
[null,"NOMBRE DEL DIPLOMADO","CONDICION","INSTITUCION",null,null,"AÑO QUE REALIZÓ EL DIPLOMADO",null,"HORAS LECTIVAS  DE DURACION DEL DIPLOMADO","Que documento tiene Ud.  que sustente lo señalado"]
[]
[]
[]
[]
[]
[]
[null,"(*)    DEBERA SER LLENADO OBLIGATORIAMENTE EN LA PRESENTACION DEL CURRICULUM DOCUMENTADO, PREVIA A LA FIRMA DEL CONTRATO"]
[]
[]
[]
[null,"OTROS DATOS"]
[null,"Se encuentra Usted Colegiado",{"$nulls":4},"Es Ud. Una Persona con Discapacidad"]
[null,"se encuentra Usted Habilitado",{"$nulls":4},"Ud. Es Licenciado de las Fuerzas Armadas"]
[null,"Pertence Usted al Cuerpo de Gerentes Publicos?"]
[]
[]
[null,"CAPACITACIONES COMPLEMENTARIAS  (ACORDE PARA EL CUMPLIMIENTO DE LOS REQUISITOS MÍNIMOS)"]
[null,"CURSOS (Seminarios, Computación, Ingles considere agregar el nivel alcanzado, acorde a los requisitos del perfil)",null,"NIVEL",null,null,null,"TIEMPO  DE ESTUDIOS","Qué documento tiene que sustente lo señalado"]
[]
[]
[]
[null,"CURSOS (Seminario, Congresos, Talleres  acordes a los requisitos del perfil)",null,"INTITUCION",null,null,null,"TIEMPO  DE ESTUDIOS  EN HORAS","Qué documento tiene que sustente lo señalado"]
[]
[]
[]
[]
[]
[]
[null,"(*)    DEBERA SER LLENADO OBLIGATORIAMENTE EN LA PRESENTACION DEL CURRICULUM DOCUMENTADO, PREVIA A LA FIRMA DEL CONTRATO"]
[]
[null,"4.    EXPERIENCIA LABORAL "]
[]
[]
[null,"EMPRESA Y/O INSTITUCION","UNIDAD ORGANICA / AREA","SECTOR","CARGO / NOMBRE DE LA FUNCION","DESCRIPCIONES DE LAS FUNCIONES PRINCIPALES RELACIONAS AL PUESTO QUE POSTULA","FECHA DE INICIO\nD/M/A","FECHA DE TERMINO\nD/M/A","AÑOS/MESES/DIAS DE EXPERIENCIA","Que documento tiene que sustente lo señalado"]
[]
[]
[]
[]
[]
[]
[{"$nulls":7},"TOTAL DE AÑOS DE EXPERIENCIA"]
[]
[null,"5.    EXPERIENCIA ESPECÍFICA  (COMPLETAR CON AQUELLOS PUESTOS DE TRABAJO AFINES A LAS FUNCIONES DEL SERVICIO SOLICITADO, INICIANDO POR LA EXPERIENCIA MÁS RECIENTE) - \"Empezar por la más reciente. No repetir lo indicado en el punto 4\"."]
[]
[]
[null,"EMPRESA Y/O INSTITUCION","UNIDAD ORGANICA / AREA","SECTOR","CARGO / NOMBRE DE LA FUNCION","DESCRIPCIONES DE LAS FUNCIONES PRINCIPALES RELACIONAS AL PUESTO QUE POSTULA","FECHA DE INICIO\nD/M/A","FECHA DE TERMINO\nD/M/A","AÑOS/MESES/DIAS DE EXPERIENCIA","Que documento tiene que sustente lo señalado"]
[]
[]
[]
[]
[]
[{"$nulls":7},"TOTAL DE AÑOS DE EXPERIENCIA"]
[]
[null,"(*)    DEBERA SER LLENADO OBLIGATORIAMENTE EN LA PRESENTACION DEL CURRICULUM DOCUMENTADO, PREVIA A LA FIRMA DEL CONTRATO"]
{"$rows_empty":11}
[null,"DECLARO BAJO JURAMENTO  QUE LA INFORMACIÓN QUE HE PROPORCIONADO ES VERAZ. CASO CONTRARIO ASUMO LAS RESPONSABILIDADES Y CONSECUENCIAS LEGALES QUE ELLO PRODUZCA, SUSCRIBIENDO LA PRESENTE EN SEÑAL DE CONFORMIDAD DE MI POSTULACIÓN"]

{"sheet":"Hoja2","index":1,"n_rows":3,"n_cols":40,"rows_kept":3,"cut":false,"hidden":true,"merged":[]}
[]
[null,"DNI N°","Nombres y Apellidos","Fecha de Nacimiento  D/M/A","edad","Dirección","Estado Civil","Distrito","Teléfono celular","Teléfono fijo","Correo electrónico","Medio por el cual se enteró del proceso CAS.","condicion","profesion","maestria","diplomado 1","HORAS DEL DIPLOMADO 1","DIPLOMADO 2","HORAS DEL DIPLOMADO 2","INGLES","COMPUTACION","CURSO 1","CURSO 2","CURSO 3","EXPERIENCIA","SECTOR","CARGO/PUESTO","AÑOS DE EXPERIENCIA","EXPERIENCIA","SECTOR","CARGO/PUESTO","AÑOS DE EXPERIENCIA","EXPERIENCIA","SECTOR","CARGO/PUESTO","AÑOS DE EXPERIENCIA","EXPERIENCIA","SECTOR","CARGO/PUESTO","AÑOS DE EXPERIENCIA"]
[null,{"$f":"Hoja1!$D13","v":0},{"$f":"Hoja1!$D14","v":"00:00:00"},{"$f":"Hoja1!$D15","v":"00:00:00"},{"$f":"(TODAY()-D3)/365","v":117.36164383561643},{"$f":"Hoja1!$D16","v":"00:00:00"},{"$f":"Hoja1!$D18","v":"00:00:00"},{"$f":"Hoja1!$D17","v":"00:00:00"},{"$f":"Hoja1!$D19","v":0},{"$f":"Hoja1!$D20","v":0},{"$f":"Hoja1!$D21","v":"00:00:00"},{"$f":"Hoja1!$D23","v":"00:00:00"},{"$f":"Hoja1!$D35","v":"00:00:00"},{"$f":"Hoja1!$E35","v":"00:00:00"},{"$f":"Hoja1!$E36","v":"00:00:00"},{"$f":"Hoja1!$B47","v":"00:00:00"},{"$f":"Hoja1!$I47","v":0},{"$f":"Hoja1!$B48","v":"00:00:00"},{"$f":"Hoja1!$I48","v":0},{"$f":"Hoja1!$D63","v":"00:00:00"},{"$f":"Hoja1!$D64","v":"00:00:00"},{"$f":"Hoja1!$B67","v":"00:00:00"},{"$f":"Hoja1!$B68","v":"00:00:00"},{"$f":"Hoja1!$B69","v":"00:00:00"},{"$f":"Hoja1!$C79","v":"00:00:00"},{"$f":"Hoja1!$D79","v":"00:00:00"},{"$f":"Hoja1!$E79","v":"00:00:00"},{"$f":"Hoja1!$I79","v":"00:00:00"},{"$f":"Hoja1!$C80","v":"00:00:00"},{"$f":"Hoja1!$D80","v":"00:00:00"},{"$f":"Hoja1!$E80","v":"00:00:00"},{"$f":"Hoja1!$I80","v":0},{"$f":"Hoja1!$C81","v":"00:00:00"},{"$f":"Hoja1!$D81","v":"00:00:00"},{"$f":"Hoja1!$E81","v":"00:00:00"},{"$f":"Hoja1!$I81","v":"00:00:00"},{"$f":"Hoja1!$C82","v":"00:00:00"},{"$f":"Hoja1!$D82","v":"00:00:00"},{"$f":"Hoja1!$E82","v":"00:00:00"},{"$f":"Hoja1!$I82","v":0}]

{"sheet":"Hoja3","index":2,"n_rows":0,"n_cols":0,"rows_kept":0,"cut":false,"hidden":true,"merged":[]}